[Event "French-ch U16-U18 2024"]
[Site "Agen"]
[Date "2024.04.19"]
[Round "7.20"]
[White "De Carvalho Massabo, Raphael"]
[Black "Bat, Bilguun"]
[Result "1/2-1/2"]
[ECO "B30"]
[WhiteElo "2105"]
[BlackElo "2360"]
[Annotator "TA"]
[PlyCount "75"]
[EventDate "2024.04.14"]
[EventType "swiss"]
[EventCountry "FRA"]
[SourceTitle "playchess.com"]
[Source "ChessBase"]
[SourceQuality "1"]
[TimeControl "5400+30"]

{[%evp 9,75,10,18,16,12,15,12,13,22,9,15,14,18,17,17,18,22,12,29,22,41,42,51,48,69,44,37,52,63,40,43,42,61,58,67,73,83,35,54,19,23,22,19,0,41,5,14,14,14,13,14,14,26,18,30,26,26,26,26,26,26,26,26,26,26,0,0,0]} 1. e4 {[%emt 0:00:07]} c5 {[%emt 0:00:15]} 2. Nc3 {[%emt 0:00:05]} Nc6 {[%emt 0:03:05]} 3. Nf3 {[%emt 0:00:08]} e5 {[%emt 0:02:48]} 4. Nd5 {[%emt 0:00:26]} Be7 {[%emt 0:05:12]} 5. Bc4 {[%emt 0:01:10]} Nf6 {[%emt 0:00:27]} 6. Nxf6+ {[%emt 0:00:30]} Bxf6 {[%emt 0:00:19]} 7. d3 {[%emt 0:01:43]} d6 {[%emt 0:00:32]} 8. c3 {[%emt 0:04:17]} a6 {[%emt 0:13:41][%cal Ba7a6,Ba6b5,Bb5b4][%mdl 32]} 9. a4 {[%emt 0:02:48]} O-O {[%emt 0:04:36]} 10. Be3 {[%emt 0:03:17]} Rb8 {[%emt 0:00:52]} 11. O-O {[%emt 0:04:29]} b5 {[%emt 0:02:16]} 12. axb5 {[%emt 0:02:05]} axb5 {[%emt 0:00:06]} 13. Bb3 {[%emt 0:00:27]} g6 {[%emt 0:03:25]} 14. Nd2 {[%emt 0:04:39]} b4 {[%emt 0:09:32]} 15. Qc2 {[%emt 0:17:36]} Bd7 {[%emt 0:20:00]} 16. Ra2 {[%emt 0:08:26]} Ra8 {[%emt 0:03:48]} 17. Rfa1 {[%emt 0:00:37]} Rxa2 {[%emt 0:00:07]} 18. Rxa2 {[%emt 0:00:16]} Bg5 {[%emt 0:02:49]} 19. Nc4 {[%emt 0:01:10]} (19. Bxg5 {is more complex.} Qxg5 20. Nc4 Rb8 21. Nxd6 bxc3 22. bxc3 Rxb3 23. h4) 19... Bxe3 {[%emt 0:01:40]} 20. Nxe3 {[%emt 0:01:32]} Kh8 {[%emt 0:01:52]} 21. Bd5 {[%emt 0:05:24]} bxc3 {[%emt 0:06:25]} 22. bxc3 {[%emt 0:00:15]} Qc7 {[%emt 0:00:29]} 23. Qb1 {[%emt 0:07:47] White is more active.} (23. Ra6 $16) 23... Rb8 {[%emt 0:05:18]} 24. Rb2 {[%emt 0:00:16]} Rxb2 {[%emt 0:00:05]} 25. Qxb2 {[%emt 0:00:02]} Kg7 {[%emt 0:00:14]} 26. Qa2 {[%emt 0:04:13]} Nd8 {[%emt 0:01:02]} 27. Nc4 {[%emt 0:05:18]} Bb5 {[%emt 0:01:12]} 28. Qb3 {[%emt 0:00:55]} Bxc4 {[%emt 0:00:06]} 29. Qxc4 $11 {[%emt 0:00:10][%mdl 4096] Endgame. KQB-KQN} Qb6 {[%emt 0:01:18][%cal Rb6b1] [#]} 30. g3 {[%emt 0:00:37]} g5 {[%emt 0:00:57]} 31. h3 {[%emt 0:00:46]} h5 {[%emt 0:00:45]} 32. Kg2 {[%emt 0:00:22]} Qa7 {[%emt 0:01:33]} 33. Qb3 {[%emt 0:01:42]} Qe7 {[%emt 0:00:16]} 34. Qd1 {[%emt 0:01:09]} Kg6 {[%emt 0:02:43]} 35. Qf3 {[%emt 0:00:26]} Qf6 {[%emt 0:00:15]} 36. Qe3 {[%emt 0:00:23]} Ne6 {[%emt 0:00:30]} 37. Bxe6 {[%emt 0:00:05]} Qxe6 {[%emt 0:00:31]} 38. c4 {[%emt 0:02:07] Weighted Error Value: White=0.10 (very precise) /Black=0.07 (flawless) .  Mistake:       	White=1     	---        Inaccurate:     	White=3     	Black=1      OK:         	White=7     	Black=10} 1/2-1/2

[Event "French-ch U16-U18 2024"]
[Site "Agen"]
[Date "2024.04.20"]
[Round "8.1"]
[White "Pereira-Davoine, Alana"]
[Black "Bat, Anu"]
[Result "0-1"]
[ECO "D32"]
[WhiteElo "1780"]
[BlackElo "1887"]
[Annotator "NA RC COMBH"]
[PlyCount "90"]
[EventDate "2024.04.14"]
[EventType "swiss"]
[EventCountry "FRA"]
[SourceTitle "playchess.com"]
[Source "ChessBase"]
[SourceQuality "1"]
[TimeControl "5400+30"]

1. d4 {[%emt 0:00:02]} d5 {[%emt 0:00:07]} 2. c4 {[%emt 0:00:07]} e6 {[%emt 0:00:09]} 3. Nc3 {[%emt 0:00:06]} c5 {[%emt 0:00:11]} 4. cxd5 {[%emt 0:00:47]} cxd4 {[%emt 0:00:11]} 5. Qa4+ {[%emt 0:00:30]} Bd7 {[%emt 0:00:18]} 6. Qxd4 {[%emt 0:00:22]} exd5 {[%emt 0:00:19]} 7. Qxd5 {[%emt 0:01:43]} Nc6 {[%emt 0:01:35]} 8. Nf3 {[%emt 0:07:04]} Nf6 {[%emt 0:00:21]} 9. Qd1 {[%emt 0:01:36]} Bb4 {[%emt 0:01:19]} 10. Bd2 {[%emt 0:03:03]} O-O {[%emt 0:00:50]} 11. e3 {[%emt 0:02:20]} Qe7 {[%emt 0:03:57]} 12. Be2 {[%emt 0:02:54]} Rfd8 {[%emt 0:01:03]} 13. O-O {[%emt 0:03:52]} Bf5 {[%emt 0:07:29]} 14. Qc1 {[%emt 1:13:04]} Rac8 {[%emt 0:17:10]} 15. Rd1 {[%emt 0:00:00]} Ne5 {[%emt 0:10:51]} 16. Nd4 {[%emt 0:00:00]} Bg6 {[%emt 0:06:57]} 17. a3 {[%emt 0:00:00]} Bd6 {[%emt 0:04:34]} 18. Be1 {[%emt 0:00:00]} a6 {[%emt 0:02:52]} 19. f3 {[%emt 0:00:00]} Nc6 {[%emt 0:05:11]} 20. Bf2 {[%emt 0:00:00]} h5 {[%emt 0:04:22]} 21. Bh4 {[%emt 0:00:00]} Nxd4 {[%emt 0:06:34]} 22. Rxd4 {[%emt 0:00:00]} Re8 {[%emt 0:00:10]} 23. Bf2 {[%emt 0:00:00]} Be5 {[%emt 0:03:25]} 24. Rd1 {[%emt 0:00:00]} Qc7 {[%emt 0:00:48]} 25. Kf1 {[%emt 0:00:00]} Bxc3 {[%emt 0:01:06]} 26. Qxc3 {[%emt 0:00:21]} Qxh2 {[%emt 0:00:26]} 27. Qd4 {[%emt 0:01:55]} Qh1+ {[%emt 0:07:49]} 28. Bg1 {[%emt 0:00:05]} h4 {[%emt 0:00:38]} 29. Kf2 {[%emt 0:01:36]} Nh5 {[%emt 0:03:41]} 30. Qb4 {[%emt 0:01:01]} h3 {[%emt 0:01:44]} 31. Bf1 {[%emt 0:02:01]} Rc2+ {[%emt 0:00:46]} 32. Rd2 {[%emt 0:00:37]} Rxd2+ {[%emt 0:00:05]} 33. Qxd2 {[%emt 0:00:06]} h2 {[%emt 0:00:12]} 34. Be2 {[%emt 0:01:00]} hxg1=Q+ {[%emt 0:10:20]} 35. Rxg1 {[%emt 0:00:04]} Qh4+ {[%emt 0:00:00]} 36. g3 {[%emt 0:00:23]} Qe7 {[%emt 0:00:00]} 37. e4 {[%emt 0:00:42]} Nf6 {[%emt 0:00:00]} 38. Kg2 {[%emt 0:00:20]} Rd8 {[%emt 0:00:00]} 39. Qc3 {[%emt 0:00:34]} Nd7 {[%emt 0:00:00]} 40. Rd1 {[%emt 0:01:00]} Nf8 {[%emt 0:00:00]} 41. Rc1 {[%emt 0:00:42]} Ne6 {[%emt 0:00:00]} 42. Bc4 {[%emt 0:00:59]} Qd6 {[%emt 0:00:00]} 43. Bd5 {[%emt 0:00:27]} b6 {[%emt 0:00:00]} 44. Rc2 {[%emt 0:00:17]} Qc5 {[%emt 0:00:00]} 45. Qd2 {[%emt 0:00:41]} Rxd5 {[%emt 0:02:37]} 0-1

[Event "French-ch U16-U18 2024"]
[Site "Agen"]
[Date "2024.04.20"]
[Round "8.2"]
[White "Alsaied, Zeina"]
[Black "Paralieu, Emma"]
[Result "1-0"]
[ECO "E40"]
[WhiteElo "1735"]
[BlackElo "1775"]
[Annotator "NA RC COMBH"]
[PlyCount "57"]
[EventDate "2024.04.14"]
[EventType "swiss"]
[EventCountry "FRA"]
[SourceTitle "playchess.com"]
[Source "ChessBase"]
[SourceQuality "1"]
[TimeControl "5400+30"]

1. d4 {[%emt 0:00:06]} Nf6 {[%emt 0:00:06]} 2. c4 {[%emt 0:00:14]} e6 {[%emt 0:00:06]} 3. Nc3 {[%emt 0:00:18]} Bb4 {[%emt 0:00:38]} 4. e3 {[%emt 0:02:34]} d5 {[%emt 0:01:04]} 5. Nge2 {[%emt 0:01:50]} c6 {[%emt 0:08:25]} 6. a3 {[%emt 0:02:54]} Bd6 {[%emt 0:06:10]} 7. c5 {[%emt 0:04:27]} Bc7 {[%emt 0:00:30]} 8. b4 {[%emt 0:07:49]} e5 {[%emt 0:06:27]} 9. f3 {[%emt 0:10:51]} e4 {[%emt 0:28:15]} 10. fxe4 {[%emt 0:09:44]} dxe4 {[%emt 0:11:33]} 11. Nf4 {[%emt 0:04:58]} Bg4 {[%emt 0:09:43]} 12. Be2 {[%emt 0:12:54]} Bxe2 {[%emt 0:00:06]} 13. Ncxe2 {[%emt 0:38:21]} g5 {[%emt 0:01:46]} 14. Nh3 {[%emt 0:00:00]} Ng4 {[%emt 0:00:34]} 15. Nc3 {[%emt 0:00:00]} Nxh2 {[%emt 0:13:10]} 16. Nxe4 {[%emt 0:00:00]} g4 {[%emt 0:00:47]} 17. Nf4 {[%emt 0:00:00]} Bxf4 {[%emt 0:05:14]} 18. exf4 {[%emt 0:00:00]} Qe7 {[%emt 0:04:10]} 19. Kd2 {[%emt 0:00:00]} O-O {[%emt 0:00:35]} 20. Rxh2 {[%emt 0:00:00]} Qxe4 {[%emt 0:00:01]} 21. Qxg4+ {[%emt 0:00:00]} Kh8 {[%emt 0:00:31]} 22. Bb2 {[%emt 0:00:00]} f6 {[%emt 0:00:23]} 23. Rah1 {[%emt 0:00:00]} Rg8 {[%emt 0:01:06]} 24. Rxh7+ {[%emt 0:00:58]} Qxh7 {[%emt 0:00:02]} 25. Rxh7+ {[%emt 0:00:01]} Kxh7 {[%emt 0:00:01]} 26. Qf5+ {[%emt 0:00:40]} Rg6 {[%emt 0:00:29]} 27. d5 {[%emt 0:01:00]} Kg7 {[%emt 0:01:22]} 28. Qc8 {[%emt 0:01:26]} Kh7 {[%emt 0:00:39]} 29. Qxb7+ {[%emt 0:00:53]} 1-0

[Event "French-ch U16-U18 2024"]
[Site "Agen"]
[Date "2024.04.20"]
[Round "8.3"]
[White "Tran, Ky Lan"]
[Black "Grisoni, Emma"]
[Result "0-1"]
[ECO "E11"]
[WhiteElo "1724"]
[BlackElo "1704"]
[Annotator "NA RC COMBH"]
[PlyCount "100"]
[EventDate "2024.04.14"]
[EventType "swiss"]
[EventCountry "FRA"]
[SourceTitle "playchess.com"]
[Source "ChessBase"]
[SourceQuality "1"]
[TimeControl "5400+30"]

1. d4 {[%emt 0:00:01]} Nf6 {[%emt 0:00:04]} 2. c4 {[%emt 0:00:09]} e6 {[%emt 0:00:05]} 3. g3 {[%emt 0:00:07]} Bb4+ {[%emt 0:00:09]} 4. Bd2 {[%emt 0:00:13]} a5 {[%emt 0:00:05]} 5. Bg2 {[%emt 0:00:10]} d6 {[%emt 0:00:24]} 6. Nf3 {[%emt 0:01:47]} Nbd7 {[%emt 0:00:07]} 7. O-O {[%emt 0:00:13]} e5 {[%emt 0:00:27]} 8. Bc1 {[%emt 0:01:02]} exd4 {[%emt 0:00:20]} 9. Nxd4 {[%emt 0:00:10]} O-O {[%emt 0:00:35]} 10. b3 {[%emt 0:00:46]} Re8 {[%emt 0:06:18]} 11. Bb2 {[%emt 0:00:30]} Ne5 {[%emt 0:12:42]} 12. Nc3 {[%emt 0:01:19]} c6 {[%emt 0:02:14]} 13. Na4 {[%emt 0:09:54]} Bc5 {[%emt 0:14:57]} 14. Nxc5 {[%emt 0:00:48]} dxc5 {[%emt 0:00:05]} 15. Nc2 {[%emt 0:00:54]} Qe7 {[%emt 0:04:38]} 16. h3 {[%emt 0:05:06]} Bf5 {[%emt 0:02:39]} 17. Ne3 {[%emt 0:03:08]} Bg6 {[%emt 0:05:11]} 18. Re1 {[%emt 0:10:19]} Ned7 {[%emt 0:02:50]} 19. Nf1 {[%emt 0:05:23]} Be4 {[%emt 0:12:03]} 20. Bxe4 {[%emt 0:03:12]} Nxe4 {[%emt 0:00:05]} 21. Nh2 {[%emt 0:05:49]} Ndf6 {[%emt 0:01:08]} 22. Qc2 {[%emt 0:01:10]} Qe6 {[%emt 0:03:23]} 23. h4 {[%emt 0:02:29]} Qf5 {[%emt 0:01:02]} 24. e3 {[%emt 0:05:45]} Nxg3 {[%emt 0:02:49]} 25. Qxf5 {[%emt 0:00:28]} Nxf5 {[%emt 0:00:04]} 26. Nf3 {[%emt 0:02:47]} Ne4 {[%emt 0:06:32]} 27. Rad1 {[%emt 0:04:49]} Red8 {[%emt 0:00:45]} 28. Kg2 {[%emt 0:05:42]} f6 {[%emt 0:00:25]} 29. Kf1 {[%emt 0:00:39]} Kf7 {[%emt 0:00:40]} 30. Ke2 {[%emt 0:00:10]} Ke7 {[%emt 0:00:27]} 31. h5 {[%emt 0:00:48]} Rxd1 {[%emt 0:00:57]} 32. Rxd1 {[%emt 0:00:08]} Rd8 {[%emt 0:00:19]} 33. Rxd8 {[%emt 0:01:32]} Kxd8 {[%emt 0:00:04]} 34. Nh2 {[%emt 0:00:43]} Ke7 {[%emt 0:01:08]} 35. Ng4 {[%emt 0:00:06]} Kf7 {[%emt 0:02:27]} 36. Kd3 {[%emt 0:00:53]} Nfd6 {[%emt 0:01:59]} 37. f3 {[%emt 0:01:36]} Ng3 {[%emt 0:03:24]} 38. h6 {[%emt 0:00:18]} Nh5 {[%emt 0:00:45]} 39. hxg7 {[%emt 0:01:12]} Kxg7 {[%emt 0:00:16]} 40. Ne5 {[%emt 0:00:33]} Nc8 {[%emt 0:02:31]} 41. Nd7 {[%emt 0:00:22]} b6 {[%emt 0:00:27]} 42. Nb8 {[%emt 0:00:05]} Kf7 {[%emt 0:01:44]} 43. Nxc6 {[%emt 0:02:04]} Ke6 {[%emt 0:01:09]} 44. Ke4 {[%emt 0:00:36]} Nd6+ {[%emt 0:06:24]} 45. Kd3 {[%emt 0:00:09]} Ng3 {[%emt 0:02:58]} 46. Na7 {[%emt 0:02:26]} h5 {[%emt 0:00:20]} 47. e4 {[%emt 0:04:27]} h4 {[%emt 0:00:53]} 48. Ke3 {[%emt 0:00:27]} h3 {[%emt 0:01:54]} 49. Kf2 {[%emt 0:00:30]} h2 {[%emt 0:00:12]} 50. Kxg3 {[%emt 0:00:43]} h1=Q {[%emt 0:02:26]} 0-1

[Event "French-ch U16-U18 2024"]
[Site "Agen"]
[Date "2024.04.20"]
[Round "8.4"]
[White "Lavilledieu, Lily-Mei"]
[Black "Fesigny, Oceane"]
[Result "1/2-1/2"]
[ECO "E32"]
[WhiteElo "1783"]
[BlackElo "1829"]
[Annotator "NA RC COMBH"]
[PlyCount "101"]
[EventDate "2024.04.14"]
[EventType "swiss"]
[EventCountry "FRA"]
[SourceTitle "playchess.com"]
[Source "ChessBase"]
[SourceQuality "1"]
[TimeControl "5400+30"]

1. d4 {[%emt 0:00:56]} Nf6 {[%emt 0:00:40]} 2. c4 {[%emt 0:00:05]} e6 {[%emt 0:00:10]} 3. Nc3 {[%emt 0:00:06]} Bb4 {[%emt 0:00:17]} 4. Qc2 {[%emt 0:00:09]} O-O {[%emt 0:00:38]} 5. Nf3 {[%emt 0:00:04]} Bxc3+ {[%emt 0:01:32]} 6. Qxc3 {[%emt 0:00:45]} b6 {[%emt 0:03:54]} 7. Bg5 {[%emt 0:00:35]} Bb7 {[%emt 0:03:26]} 8. e3 {[%emt 0:06:31]} d6 {[%emt 0:15:23]} 9. Bd3 {[%emt 0:15:40]} Nbd7 {[%emt 0:09:09]} 10. O-O-O {[%emt 0:02:56]} Qe7 {[%emt 0:03:18]} 11. Bc2 {[%emt 0:14:48]} Rfe8 {[%emt 0:30:34]} 12. Qe1 {[%emt 0:14:24]} e5 {[%emt 0:06:11]} 13. d5 {[%emt 0:07:07]} h6 {[%emt 0:02:41]} 14. Bh4 {[%emt 0:00:54]} a5 {[%emt 0:04:38]} 15. Ba4 {[%emt 0:08:11]} Red8 {[%emt 0:02:07]} 16. Nd2 {[%emt 0:03:09]} Nc5 {[%emt 0:00:52]} 17. Bc2 {[%emt 0:00:07]} Ba6 {[%emt 0:04:56]} 18. f3 {[%emt 0:02:35]} b5 {[%emt 0:01:09]} 19. cxb5 {[%emt 0:03:37]} Bxb5 {[%emt 0:00:09]} 20. e4 {[%emt 0:00:51]} Bd3 {[%emt 0:02:40]} 21. Qe3 {[%emt 0:00:40]} Bxc2 {[%emt 0:01:25]} 22. Kxc2 {[%emt 0:00:08]} Nxd5 {[%emt 0:02:06]} 23. Qxc5 {[%emt 0:01:28]} dxc5 {[%emt 0:00:12]} 24. Bxe7 {[%emt 0:00:05]} Nxe7 {[%emt 0:00:11]} 25. Nc4 {[%emt 0:00:53]} Nc6 {[%emt 0:00:22]} 26. Rd2 {[%emt 0:02:26]} Nd4+ {[%emt 0:00:56]} 27. Kc3 {[%emt 0:00:57]} f6 {[%emt 0:00:16]} 28. Na3 {[%emt 0:00:38]} Rab8 {[%emt 0:00:50]} 29. b3 {[%emt 0:01:18]} Rd6 {[%emt 0:02:34]} 30. Nc4 {[%emt 0:00:30]} Ra6 {[%emt 0:00:13]} 31. Ne3 {[%emt 0:02:56]} a4 {[%emt 0:00:30]} 32. Rb1 {[%emt 0:00:38]} Nb5+ {[%emt 0:01:09]} 33. Kb2 {[%emt 0:01:22]} axb3 {[%emt 0:00:51]} 34. axb3 {[%emt 0:00:36]} Rba8 {[%emt 0:00:40]} 35. Rc2 {[%emt 0:01:20]} Ra2+ {[%emt 0:00:38]} 36. Kc1 {[%emt 0:00:16]} Rxc2+ {[%emt 0:00:36]} 37. Nxc2 {[%emt 0:00:07]} Nd4 {[%emt 0:00:29]} 38. Kb2 {[%emt 0:00:43]} Rb8 {[%emt 0:00:28]} 39. Kc3 {[%emt 0:00:25]} Nxc2 {[%emt 0:00:31]} 40. Kxc2 {[%emt 0:00:04]} Kf7 {[%emt 0:00:07]} 41. Kc3 {[%emt 0:00:21]} Rd8 {[%emt 0:00:54]} 42. Rb2 {[%emt 0:00:36]} Rd4 {[%emt 0:00:14]} 43. Ra2 {[%emt 0:00:19]} Ke6 {[%emt 0:00:43]} 44. Ra7 {[%emt 0:00:34]} Kd7 {[%emt 0:00:37]} 45. Ra8 {[%emt 0:00:27]} Ke7 {[%emt 0:00:27]} 46. Rg8 {[%emt 0:00:39]} Kf7 {[%emt 0:00:32]} 47. Rc8 {[%emt 0:01:40]} Rd7 {[%emt 0:00:26]} 48. Kc4 {[%emt 0:08:54]} Ke6 {[%emt 0:01:09]} 49. Kxc5 {[%emt 0:00:30]} Rd2 {[%emt 0:00:30]} 50. Rxc7 Rxg2 {[%emt 0:00:30]} 51. b4 {[%emt 0:01:00]} 1/2-1/2

[Event "French-ch U16-U18 2024"]
[Site "Agen"]
[Date "2024.04.20"]
[Round "8.5"]
[White "Caullychurn, Ambre"]
[Black "Bellahcene, Jenna"]
[Result "1/2-1/2"]
[ECO "D37"]
[WhiteElo "1702"]
[BlackElo "1766"]
[Annotator "NA RC COMBH"]
[PlyCount "129"]
[EventDate "2024.04.14"]
[EventType "swiss"]
[EventCountry "FRA"]
[SourceTitle "playchess.com"]
[Source "ChessBase"]
[SourceQuality "1"]
[TimeControl "5400+30"]

1. d4 {[%emt 0:00:05]} d5 {[%emt 0:00:16]} 2. c4 {[%emt 0:00:17]} e6 {[%emt 0:00:26]} 3. Nf3 {[%emt 0:00:24]} Nf6 {[%emt 0:00:15]} 4. Nc3 {[%emt 0:01:37]} Be7 {[%emt 0:00:42]} 5. Bf4 {[%emt 0:01:10]} c6 {[%emt 0:00:23]} 6. a4 {[%emt 0:01:15]} a5 {[%emt 0:11:27]} 7. e3 {[%emt 0:02:00]} Nbd7 {[%emt 0:01:39]} 8. Bd3 {[%emt 0:03:10]} O-O {[%emt 0:02:50]} 9. Qc2 {[%emt 0:01:14]} h6 {[%emt 0:01:19]} 10. O-O {[%emt 0:03:20]} Nh5 {[%emt 0:09:38]} 11. Bg3 {[%emt 0:01:55]} Nxg3 {[%emt 0:02:02]} 12. hxg3 {[%emt 0:00:24]} Bd6 {[%emt 0:10:20]} 13. e4 {[%emt 0:03:49]} dxc4 {[%emt 0:07:32]} 14. Bxc4 {[%emt 0:00:25]} e5 {[%emt 0:01:48]} 15. Rad1 {[%emt 0:10:19]} Qe7 {[%emt 0:02:19]} 16. d5 {[%emt 0:02:04]} Nf6 {[%emt 0:05:24]} 17. dxc6 {[%emt 0:01:20]} bxc6 {[%emt 0:00:11]} 18. Nh4 {[%emt 0:03:33]} Be6 {[%emt 0:05:45]} 19. Bxe6 {[%emt 0:03:42]} Qxe6 {[%emt 0:00:11]} 20. Nf5 {[%emt 0:58:27]} Bc7 {[%emt 0:02:31]} 21. Ne2 {[%emt 0:00:00]} Rab8 {[%emt 0:01:11]} 22. Rc1 {[%emt 0:00:00]} Rb6 {[%emt 0:04:51]} 23. Rfe1 {[%emt 0:00:00]} Rfb8 {[%emt 0:01:25]} 24. f3 {[%emt 0:00:00]} Rxb2 {[%emt 0:08:18]} 25. Qxc6 {[%emt 0:00:00]} Bb6+ {[%emt 0:00:26]} 26. Kf1 {[%emt 0:00:00]} Qxc6 {[%emt 0:05:38]} 27. Ne7+ {[%emt 0:00:00]} Kh7 {[%emt 0:03:39]} 28. Nxc6 {[%emt 0:00:00]} Re8 {[%emt 0:00:38]} 29. Rb1 {[%emt 0:00:00]} Rxb1 {[%emt 0:01:21]} 30. Rxb1 {[%emt 0:00:00]} Nd7 {[%emt 0:03:56]} 31. Rb5 {[%emt 0:00:00]} f6 {[%emt 0:00:44]} 32. Nxa5 {[%emt 0:00:00]} Rc8 {[%emt 0:00:09]} 33. Nb3 {[%emt 0:00:00]} Rc2 {[%emt 0:01:42]} 34. a5 {[%emt 0:00:00]} Be3 {[%emt 0:00:16]} 35. Ke1 {[%emt 0:00:00]} Rb2 {[%emt 0:02:54]} 36. Kd1 {[%emt 0:00:00]} Nc5 {[%emt 0:01:31]} 37. Rxc5 {[%emt 0:00:00]} Bxc5 {[%emt 0:00:46]} 38. Nxc5 {[%emt 0:00:00]} Rb5 {[%emt 0:00:03]} 39. Nd3 {[%emt 0:01:47]} Rxa5 {[%emt 0:00:01]} 40. Kd2 {[%emt 0:00:39]} Kg6 {[%emt 0:00:25]} 41. g4 {[%emt 0:00:54]} h5 {[%emt 0:02:02]} 42. gxh5+ {[%emt 0:00:55]} Kxh5 {[%emt 0:00:03]} 43. Ke3 {[%emt 0:00:33]} Ra3 {[%emt 0:00:28]} 44. f4 {[%emt 0:01:35]} exf4+ {[%emt 0:01:03]} 45. Nexf4+ {[%emt 0:00:07]} Kg4 {[%emt 0:00:13]} 46. Kd4 {[%emt 0:01:27]} Ra4+ {[%emt 0:00:48]} 47. Kd5 {[%emt 0:00:35]} Ra3 {[%emt 0:00:16]} 48. Kd4 {[%emt 0:02:30]} Ra4+ {[%emt 0:00:39]} 49. Kc3 {[%emt 0:00:37]} Rxe4 {[%emt 0:00:30]} 50. g3 {[%emt 0:00:22]} Kxg3 {[%emt 0:00:35]} 51. Nh5+ {[%emt 0:00:05]} Kf3 {[%emt 0:00:42]} 52. Nxg7 {[%emt 0:00:10]} Re3 {[%emt 0:00:31]} 53. Kd4 {[%emt 0:00:20]} Re2 {[%emt 0:01:42]} 54. Nf5 {[%emt 0:00:35]} Kg4 {[%emt 0:00:16]} 55. Ne3+ {[%emt 0:00:17]} Kg5 {[%emt 0:00:19]} 56. Nc1 {[%emt 0:01:20]} Rh2 {[%emt 0:00:19]} 57. Ke4 {[%emt 0:00:20]} Rh8 {[%emt 0:00:18]} 58. Nd3 {[%emt 0:00:22]} Re8+ {[%emt 0:00:22]} 59. Kf3 {[%emt 0:00:14]} f5 {[%emt 0:00:10]} 60. Nf4 {[%emt 0:00:26]} Rh8 {[%emt 0:00:41]} 61. Kg3 {[%emt 0:00:36]} Ra8 {[%emt 0:00:18]} 62. Ne6+ {[%emt 0:00:25]} Kf6 {[%emt 0:00:21]} 63. Nd4 {[%emt 0:00:20]} Ra3 {[%emt 0:00:44]} 64. Ndxf5 {[%emt 0:00:32]} Rxe3+ {[%emt 0:00:08]} 65. Nxe3 {[%emt 0:00:06]} 1/2-1/2

[Event "French-ch U16-U18 2024"]
[Site "Agen"]
[Date "2024.04.20"]
[Round "8.6"]
[White "Boumrar, Ayrad"]
[Black "Breuil, Tristan"]
[Result "1/2-1/2"]
[ECO "B51"]
[WhiteElo "2191"]
[BlackElo "2281"]
[Annotator "TA"]
[PlyCount "55"]
[EventDate "2024.04.14"]
[EventType "swiss"]
[EventCountry "FRA"]
[SourceTitle "playchess.com"]
[Source "ChessBase"]
[SourceQuality "1"]
[TimeControl "5400+30"]

{[%evp 9,55,4,21,22,25,33,30,32,35,43,30,31,38,19,43,0,15,12,23,12,23,-3,-1,-10,-19,-29,-24,-27,-36,-45,0,-33,-2,-27,4,6,0,0,6,13,8,11,14,9,5,4,9,-6]} 1. e4 {[%emt 0:00:04]} c5 {[%emt 0:01:12]} 2. Nf3 {[%emt 0:00:18]} d6 {[%emt 0:00:04]} 3. Bb5+ {[%emt 0:00:04]} Nd7 {[%emt 0:00:25]} 4. a4 {[%emt 0:00:28][%cal Ba2a4,Ba4a5][%mdl 32]} Ngf6 {[%emt 0:00:39]} 5. Nc3 {[%emt 0:00:22]} g6 {[%emt 0:01:03]} 6. a5 {[%emt 0:00:25]} Bg7 {[%emt 0:08:50]} 7. O-O {[%emt 0:00:30]} a6 {[%emt 0:03:38]} 8. Be2 {[%emt 0:00:05] White has an edge.} O-O {[%emt 0:00:17]} 9. d3 {[%emt 0:00:04]} b5 {[%emt 0:00:14]} 10. axb6 {[%emt 0:00:11]} Nxb6 {[%emt 0:00:02]} 11. Qd2 {[%emt 0:00:09]} a5 {[%emt 0:00:07]} 12. h3 {[%emt 0:05:04]} Bb7 {[%emt 0:13:02]} 13. Qg5 {[%emt 0:01:25]} Ne8 {[%emt 0:02:42][%cal Bf6e8,Be8c7,Bc7e6,Be6f4][%mdl 32]} 14. Qh4 {[%emt 0:03:32]} Nc7 {[%emt 0:02:30]} 15. Bh6 {[%emt 0:13:51]} e5 {[%emt 0:03:23] [#] aiming for ...Qxh4.} 16. Bg5 {[%emt 0:02:50]} (16. Qxd8 {simplifies} Rfxd8 17. Be3 Ne6 18. Rfb1) 16... f6 {[%emt 0:01:56]} 17. Bh6 {[%emt 0:02:48]} Ne6 {[%emt 0:06:34]} 18. Bxg7 {[%emt 0:01:04]} Kxg7 {[%emt 0:01:44]} 19. Rfe1 {[%emt 1:06:46]} Nf4 {[%emt 0:16:00]} 20. Bf1 {[%emt 0:00:00]} Qd7 {[%emt 0:02:57]} 21. Ne2 {[%emt 0:00:00]} Nxe2+ {[%emt 0:07:43]} 22. Bxe2 {[%emt 0:00:00] The position is equal.} f5 {[%emt 0:00:01]} 23. Nd2 {[%emt 0:00:00]} Qd8 {[%emt 0:00:57]} 24. Qxd8 {[%emt 0:00:00]} Rfxd8 {[%emt 0:00:03]} 25. Bf3 {[%emt 0:00:00]} Kf6 {[%emt 0:01:34]} 26. Ra3 {[%emt 0:00:00]} a4 {[%emt 0:01:36]} 27. b3 {[%emt 0:00:00]} Bc6 {[%emt 0:00:30]} 28. Rb1 {[%emt 0:00:00] Weighted Error Value: White=0.10 (very precise) /Black=0.11 (very precise) .  Inaccurate:     	White=3     	Black=3      OK:         	White=5     	Black=5      Best:        	White=1     	---} 1/2-1/2